bitfinex/quotes_BTCUSD_20241011
["timestamp","ask_amount","ask_price","bid_price","bid_amount"]
[1728631372106,0.62650599,60865.0,60864.0,0.002636]
[1728631372312,1.12039299,60865.0,60864.0,0.002636]
[1728631376931,1.14610682,60865.0,60864.0,0.002636]
[1728631377330,1.31554952,60865.0,60864.0,0.002636]
[1728631380769,0.84567182,60865.0,60864.0,0.002636]
[1728631382288,0.66967182,60865.0,60864.0,0.002636]
[1728631387954,1.3360583,60865.0,60864.0,0.002636]
[1728631388150,0.97621982,60865.0,60864.0,0.002636]
[1728631388656,1.1426063,60865.0,60864.0,0.002636]
[1728631389294,0.97621982,60865.0,60864.0,0.002636]
[1728631392968,0.97621982,60865.0,60864.0,0.33780726]
[1728631393176,0.85031512,60865.0,60864.0,0.2785597]
[1728631393413,0.70263799,60865.0,60864.0,0.3614597]
[1728631393610,0.70263799,60865.0,60864.0,0.3662597]
[1728631393611,0.80110217,60865.0,60864.0,0.3662597]
[1728631393859,0.68863799,60865.0,60864.0,0.3662597]
[1728631394063,0.78710217,60865.0,60864.0,0.3662597]
[1728631394264,0.79010217,60865.0,60864.0,0.3662597]
[1728631394469,0.80410217,60865.0,60864.0,0.3662597]
[1728631394686,1.03797017,60865.0,60864.0,0.3652597]
[1728631394888,0.92550599,60865.0,60864.0,0.3652597]
[1728631395179,0.95350599,60865.0,60864.0,0.3662597]
[1728631395371,1.06258233,60865.0,60864.0,0.3662597]
[1728631395592,0.92550599,60865.0,60864.0,0.3652597]
[1728631395792,0.93950599,60865.0,60864.0,0.3652597]
[1728631395960,0.79163799,60865.0,60864.0,0.3652597]
[1728631396162,0.77763799,60865.0,60864.0,0.42705083]
[1728631396568,0.77763799,60865.0,60864.0,0.3652597]
[1728631396951,0.79163799,60865.0,60864.0,0.278836]
[1728631397358,0.95350599,60865.0,60864.0,0.278836]
[1728631397624,0.95350599,60865.0,60864.0,0.277836]
[1728631397625,1.03788628,60865.0,60864.0,0.277836]
[1728631397775,1.05188628,60865.0,60864.0,0.278836]
[1728631399019,0.90401828,60865.0,60864.0,0.278836]
[1728631399396,1.05188628,60865.0,60864.0,0.278836]
[1728631399831,0.90401828,60865.0,60864.0,0.278836]
[1728631400630,0.80563799,60865.0,60864.0,0.278836]
[1728631401055,0.95350599,60865.0,60864.0,0.278836]
[1728631401258,0.80563799,60865.0,60864.0,0.278836]
[1728631403011,0.87936894,60865.0,60864.0,0.278836]
[1728631404184,1.02723694,60865.0,60864.0,0.090336]
[1728631404439,0.95350599,60865.0,60864.0,0.083936]
[1728631404685,0.95350599,60865.0,60864.0,0.080736]
[1728631405177,1.02722833,60865.0,60864.0,0.080736]
[1728631405418,0.95350599,60865.0,60864.0,0.080736]
[1728631405658,1.07635775,60865.0,60864.0,0.002636]
[1728631407588,0.95350599,60865.0,60864.0,0.002636]
[1728631408299,1.07636069,60865.0,60864.0,0.002636]
[1728631408515,0.95350599,60865.0,60864.0,0.002636]
[1728631409130,1.07634918,60865.0,60864.0,0.002636]
[1728631409487,0.95350599,60865.0,60864.0,0.002636]
[1728631410693,1.12294869,60865.0,60864.0,0.002636]
[1728631412696,0.95350599,60865.0,60864.0,0.002636]
[1728631413286,1.07639398,60865.0,60864.0,0.002636]
[1728631413494,0.95350599,60865.0,60864.0,0.002636]
[1728631413893,1.05182222,60865.0,60864.0,0.002636]
[1728631414102,1.05182274,60865.0,60864.0,0.002636]
[1728631414514,1.05183771,60865.0,60864.0,0.002636]
[1728631415134,1.0518533,60865.0,60864.0,0.002636]
[1728631415349,1.07642065,60865.0,60864.0,0.002636]
[1728631418173,0.95350599,60865.0,60864.0,0.002636]
[1728631420700,1.01494087,60865.0,60864.0,0.002636]
[1728631427067,0.95350599,60865.0,60864.0,0.002636]
[1728631428557,1.38695355,60865.0,60864.0,0.002636]
[1728631428817,1.83365369,60865.0,60864.0,0.002636]
[1728631429079,1.99971644,60865.0,60864.0,0.002636]
[1728631429334,2.00171644,60865.0,60864.0,0.002636]
[1728631429570,1.82165369,60865.0,60864.0,0.001636]
[1728631429837,1.99109639,60865.0,60864.0,0.001636]
[1728631430600,2.00509639,60865.0,60864.0,0.002636]
[1728631430860,1.98909639,60865.0,60864.0,0.002636]
[1728631431099,2.00509639,60865.0,60864.0,0.002636]
[1728631431345,1.99109639,60865.0,60864.0,0.002636]
[1728631431871,2.00509639,60865.0,60864.0,0.002636]
[1728631432102,2.0031034,60865.0,60864.0,0.002636]
[1728631432325,2.0171034,60865.0,60864.0,0.002636]
[1728631432569,2.0031034,60865.0,60864.0,0.002636]
[1728631432803,2.0171034,60865.0,60864.0,0.002636]
[1728631433038,2.0031034,60865.0,60864.0,0.001636]
[1728631433238,2.0171034,60865.0,60864.0,0.001636]
[1728631433734,2.0031034,60865.0,60864.0,0.001636]
[1728631434202,2.0171034,60865.0,60864.0,0.001636]
[1728631434700,2.15507522,60865.0,60864.0,0.001636]
[1728631434967,2.18307522,60865.0,60864.0,0.001636]
[1728631437926,2.0171034,60865.0,60864.0,0.001636]
[1728631438413,1.9296797,60865.0,60864.0,0.001636]
[1728631438674,2.0171034,60865.0,60864.0,0.001636]
[1728631439132,2.9190514,60865.0,60864.0,0.001636]
[1728631442075,2.8148834,60865.0,60864.0,0.001636]
[1728631446445,2.8378834,60865.0,60864.0,0.001636]
[1728631446678,2.9303071,60865.0,60864.0,0.001636]
[1728631446915,2.8428834,60865.0,60864.0,0.001636]
[1728631447706,2.83537271,60865.0,60864.0,0.001636]
[1728631448105,2.84339818,60865.0,60864.0,0.001636]
[1728631453734,2.86911557,60865.0,60864.0,0.001636]
[1728631456529,3.05526927,60865.0,60864.0,0.001636]
[1728631457413,1.73316527,60865.0,60864.0,0.001636]
[1728631457834,6.78316527,60865.0,60864.0,0.001636]
[1728631458049,6.82936259,60865.0,60864.0,0.001636]
[1728631458319,6.87159384,60865.0,60864.0,0.001636]
[1728631459167,6.84673184,60865.0,60864.0,0.001636]
[1728631460214,6.46049184,60865.0,60864.0,0.001636]
[1728631460420,6.37820184,60865.0,60864.0,0.001636]
[1728631461249,5.29563814,60865.0,60864.0,0.001636]
[1728631461440,4.46549514,60865.0,60864.0,0.001636]
[1728631465982,4.37807144,60865.0,60864.0,0.001636]
[1728631466140,4.46549514,60865.0,60864.0,0.001636]
[1728631466848,4.50240991,60865.0,60864.0,0.001636]
[1728631469031,4.58983361,60865.0,60864.0,0.001636]
[1728631469240,4.9226052,60865.0,60864.0,0.001636]
[1728631469692,5.6226052,60865.0,60864.0,0.001636]
[1728631471941,5.28983361,60865.0,60864.0,0.001636]
[1728631475583,5.28983361,60865.0,60864.0,1e-06]
[1728631475793,0.409375,60862.0,60861.0,0.001636]
[1728631475920,5.8855507,60862.0,60861.0,0.001636]
[1728631476758,5.9855507,60862.0,60861.0,0.001636]
[1728631476967,6.6995507,60862.0,60861.0,0.001636]
[1728631477823,6.4426843,60862.0,60861.0,0.001636]
[1728631478029,6.530108,60862.0,60861.0,0.001636]
[1728631479073,6.55193235,60862.0,60861.0,0.001636]
[1728631479664,6.57493235,60862.0,60861.0,0.001636]
[1728631480182,6.67366235,60862.0,60861.0,0.001636]
[1728631480385,6.84310505,60862.0,60861.0,0.001636]
[1728631482381,6.10298805,60862.0,60861.0,0.001636]
[1728631482604,6.12509137,60862.0,60861.0,0.001636]
[1728631484202,5.42509137,60862.0,60861.0,0.001636]
[1728631485246,5.47128869,60862.0,60861.0,0.001636]
[1728631485468,5.50820346,60862.0,60861.0,0.001636]
[1728631485708,5.55043471,60862.0,60861.0,0.001636]
[1728631485929,5.55043471,60862.0,60861.0,0.00011535]
[1728631486782,5.46311101,60862.0,60861.0,0.00011535]
[1728631486994,5.41691369,60862.0,60861.0,0.00011535]
[1728631487205,6.11691369,60862.0,60861.0,0.00011535]
[1728631487854,6.10291369,60862.0,60861.0,0.00011535]
[1728631488271,6.11691369,60862.0,60861.0,0.00011535]
[1728631488606,6.10291369,60862.0,60861.0,0.00011535]
[1728631488866,6.11691369,60862.0,60861.0,0.00011535]
[1728631491807,6.11691369,60862.0,60860.0,0.001634]
[1728631491808,0.376607,60861.0,60860.0,3.5e-07]
[1728631492035,6.52482871,60861.0,60860.0,3.5e-07]
[1728631492239,1.48257267,60861.0,60860.0,3.5e-07]
[1728631492369,1.58422665,60861.0,60860.0,3.5e-07]
[1728631493677,1.59822665,60861.0,60860.0,3.5e-07]
[1728631494585,1.61222665,60861.0,60860.0,3.5e-07]
[1728631495650,5.42661,60860.0,60859.0,0.0001281]
[1728631495850,6.71935542,60860.0,60859.0,0.0001281]
[1728631496098,6.72709928,60860.0,60859.0,0.0001281]
[1728631496824,6.74109928,60860.0,60859.0,0.0001281]
[1728631497610,6.75509928,60860.0,60859.0,0.0001281]
[1728631499555,6.92829928,60860.0,60859.0,0.0001281]
[1728631499758,7.19079928,60860.0,60859.0,0.0001281]
[1728631500660,7.01595188,60860.0,60859.0,0.0001281]
[1728631500860,7.01759928,60860.0,60859.0,0.0001281]
[1728631501446,7.01759928,60860.0,60859.0,0.00021025]
[1728631502471,6.97804728,60860.0,60859.0,0.00021025]
[1728631502684,6.80319988,60860.0,60859.0,0.00021025]
[1728631502883,6.89062358,60860.0,60859.0,0.00021025]
[1728631503110,6.45295718,60860.0,60859.0,0.00021025]
[1728631503309,6.54038088,60860.0,60859.0,0.00021025]
[1728631503925,6.62780458,60860.0,60859.0,0.00021025]
[1728631504179,6.54119888,60860.0,60859.0,0.00021025]
[1728631509756,6.87240023,60860.0,60859.0,0.00021025]
[1728631510177,7.47240469,60860.0,60859.0,0.00021025]
[1728631516073,7.55982839,60860.0,60859.0,0.00021025]
[1728631516286,7.47240469,60860.0,60859.0,1.81e-05]
[1728631516721,7.55982839,60860.0,60859.0,0.0016541]
[1728631518449,7.47240469,60860.0,60859.0,0.0016541]
[1728631526421,7.47240469,60860.0,60859.0,0.00013262]
[1728631526668,7.30296199,60860.0,60859.0,0.00013262]
[1728631529311,2.25296199,60860.0,60859.0,0.00013262]
[1728631529520,6.46205286,60860.0,60859.0,0.00013262]
[1728631529751,7.30296199,60860.0,60859.0,0.00013262]
[1728631533425,6.60296199,60860.0,60859.0,0.00013262]
[1728631534275,6.77240469,60860.0,60859.0,0.00013262]
[1728631535146,6.51553829,60860.0,60859.0,0.00013262]
[1728631535355,5.84119888,60860.0,60859.0,0.00013262]
[1728631537754,5.84119888,60860.0,60859.0,1.051e-05]
[1728631538757,6.60704069,60860.0,60859.0,1.051e-05]
[1728631540262,6.69446439,60860.0,60859.0,1.051e-05]
[1728631540475,7.72200709,60860.0,60859.0,1.051e-05]
[1728631540873,0.876615,60858.0,60857.0,3.5e-07]
[1728631541075,1.2040243,60858.0,60857.0,3.5e-07]
[1728631541537,1.23747287,60858.0,60857.0,3.5e-07]
[1728631541746,1.40691557,60858.0,60857.0,3.5e-07]
[1728631541960,2.10691557,60858.0,60857.0,3.5e-07]
[1728631542176,0.9390577,60850.0,60848.0,6.11327861]
[1728631542435,5.536345,60850.0,60848.0,6.11327861]
[1728631542641,5.94846572,60850.0,60848.0,6.11327861]
[1728631543051,5.95619404,60850.0,60848.0,6.11327861]
[1728631543473,6.10596043,60850.0,60848.0,6.11327861]
[1728631543884,6.11996043,60850.0,60848.0,6.11327861]
[1728631545058,6.13396043,60850.0,60848.0,6.11327861]
[1728631547094,6.14581499,60850.0,60848.0,6.11327861]
[1728631547420,5.70134899,60850.0,60848.0,6.11327861]
[1728631547633,4.59701999,60850.0,60848.0,6.11327861]
[1728631547813,4.23861499,60850.0,60848.0,6.11327861]
[1728631548071,4.19638374,60850.0,60848.0,6.11327861]
[1728631550653,4.10896004,60850.0,60848.0,6.11327861]
[1728631550832,4.19638374,60850.0,60848.0,6.11327861]
[1728631551041,4.2391988,60850.0,60848.0,6.11327861]
[1728631551260,4.7638158,60850.0,60848.0,6.11327861]
[1728631551470,4.4259248,60850.0,60848.0,6.11327861]
[1728631551881,4.3385011,60850.0,60848.0,6.11327861]
[1728631552080,4.4259248,60850.0,60848.0,6.11327861]
[1728631552935,4.4917358,60850.0,60848.0,6.11327861]
[1728631554329,4.3651398,60850.0,60848.0,6.11327861]
[1728631555543,3.9039111,60850.0,60848.0,6.11327861]
[1728631555786,3.9913348,60850.0,60848.0,6.11327861]
[1728631561431,2.79102171,60850.0,60848.0,6.11327861]
[1728631561717,2.17426495,60850.0,60849.0,0.244236]
[1728631561935,1.64317688,60850.0,60849.0,0.244236]
[1728631566813,1.55575318,60850.0,60849.0,0.244236]
[1728631567025,1.13562031,60850.0,60849.0,0.244236]
[1728631567239,1.49448431,60850.0,60849.0,0.244236]
[1728631567450,1.49548031,60850.0,60849.0,0.244236]
[1728631567652,1.13562031,60850.0,60849.0,0.244236]
[1728631567826,1.49547731,60850.0,60849.0,0.244236]
[1728631568044,0.96979618,60850.0,60849.0,0.244236]
[1728631568189,0.96479618,60850.0,60849.0,0.244236]
[1728631568395,1.28703218,60850.0,60849.0,0.244236]
[1728631568811,0.96479618,60850.0,60849.0,0.244236]
[1728631569257,0.86479618,60850.0,60849.0,0.244236]
[1728631569938,0.83679618,60850.0,60849.0,0.244236]
[1728631570153,0.85079618,60850.0,60849.0,0.244236]
[1728631570354,0.82494162,60850.0,60849.0,0.244236]
[1728631570724,0.93894162,60850.0,60849.0,0.244236]
[1728631571649,0.95294162,60850.0,60849.0,0.244236]
[1728631571967,0.93894162,60850.0,60849.0,0.244236]
[1728631572725,0.95294162,60850.0,60849.0,0.244236]
[1728631578106,0.30503762,60850.0,60849.0,0.244236]
[1728631578317,0.20503762,60850.0,60849.0,0.244236]
[1728631578527,0.1973093,60850.0,60849.0,0.244236]
[1728631578934,0.1693093,60850.0,60849.0,0.244236]
[1728631579131,0.1833093,60850.0,60849.0,0.244236]
[1728631579336,0.2973093,60850.0,60849.0,0.244236]
[1728631579766,0.2833093,60850.0,60849.0,0.244236]
[1728631579966,0.2973093,60850.0,60849.0,0.244236]
[1728631581030,0.39563855,60850.0,60849.0,0.244236]
[1728631581259,0.2973093,60850.0,60849.0,0.244236]
[1728631582046,0.30506158,60850.0,60849.0,0.244236]
[1728631582496,0.2973093,60850.0,60849.0,0.244236]
[1728631583553,0.2973093,60850.0,60849.0,0.2475225]
[1728631584649,0.30509638,60850.0,60849.0,0.2475225]
[1728631585682,0.2973093,60850.0,60849.0,0.2475225]
[1728631595217,0.37093773,60850.0,60849.0,0.2475225]
[1728631595858,0.2973093,60850.0,60849.0,0.2475225]
[1728631596070,0.37110167,60850.0,60849.0,0.2475225]
[1728631602102,0.37110167,60850.0,60849.0,0.244236]
[1728631605267,0.2973093,60850.0,60849.0,0.244236]
[1728631605693,0.2973093,60850.0,60849.0,0.24752242]
[1728631606500,0.2973093,60850.0,60849.0,0.244236]
[1728631607646,0.2973093,60850.0,60849.0,0.247436]
[1728631607841,0.2973093,60850.0,60849.0,0.250636]
[1728631608147,0.2973093,60850.0,60849.0,0.253836]
[1728631609337,0.2973093,60850.0,60849.0,0.247436]
[1728631609712,0.2973093,60850.0,60849.0,0.244236]
[1728631613154,0.2973093,60850.0,60849.0,0.392143]
[1728631613498,0.2973093,60850.0,60849.0,0.244236]
[1728631613693,0.2973093,60850.0,60849.0,0.249036]
[1728631614085,0.2973093,60850.0,60849.0,0.395343]
[1728631614268,0.2973093,60850.0,60849.0,0.393743]
[1728631614481,0.2973093,60850.0,60849.0,0.250636]
[1728631614689,0.2973093,60850.0,60849.0,0.253836]
[1728631615106,0.2973093,60850.0,60849.0,0.401743]
[1728631620602,0.1973093,60850.0,60849.0,0.4891667]
[1728631620817,0.028,60850.0,60849.0,0.4941667]
[1728631621801,0.014,60850.0,60849.0,0.4941667]
[1728631622015,0.03,60851.0,60850.0,0.25]
[1728631622234,0.03,60851.0,60850.0,0.40119002]
[1728631622454,0.03,60851.0,60850.0,0.397904]
[1728631623297,0.03,60851.0,60850.0,0.386248]
[1728631623497,0.044,60851.0,60850.0,0.386248]
[1728631623699,0.044,60851.0,60850.0,0.389448]
[1728631623946,0.044,60851.0,60850.0,0.394248]
[1728631624146,0.044,60851.0,60850.0,0.395848]
[1728631624760,0.058,60851.0,60850.0,0.395848]
[1728631625199,0.044,60851.0,60850.0,0.395848]
[1728631625404,0.058,60851.0,60850.0,0.395848]
[1728631625664,0.044,60851.0,60850.0,0.395848]
[1728631625979,0.058,60851.0,60850.0,0.395848]
[1728631626187,0.058,60851.0,60850.0,0.64359556]
[1728631626389,0.058,60851.0,60850.0,0.4832717]
[1728631634178,0.058,60851.0,60850.0,0.395848]
[1728631636607,0.058,60851.0,60850.0,0.157504]
[1728631636871,0.2273093,60851.0,60850.0,0.157504]
[1728631637143,0.2273093,60851.0,60850.0,0.0096]
[1728631640717,0.2273093,60851.0,60850.0,0.157504]
[1728631641648,0.2273093,60851.0,60850.0,0.16079028]
[1728631643056,0.2273093,60851.0,60850.0,0.16242628]
[1728631643287,0.2281273,60851.0,60850.0,0.16242628]
[1728631643531,0.2281273,60851.0,60850.0,0.15914]
[1728631644031,0.2281273,60851.0,60850.0,0.24984995]
[1728631645192,0.2281273,60851.0,60850.0,0.16242625]
[1728631645620,0.2281273,60851.0,60850.0,0.15914]
[1728631657696,0.2281273,60851.0,60850.0,0.011236]
[1728631657906,0.3859273,60851.0,60850.0,0.011236]
[1728631658735,0.3859273,60851.0,60850.0,0.15914]
[1728631659158,0.3859273,60851.0,60850.0,0.011236]
[1728631662988,0.3859273,60851.0,60850.0,0.004836]
[1728631663229,0.3859273,60851.0,60850.0,0.001636]
[1728631664031,0.4642273,60851.0,60850.0,0.001636]
[1728631664533,0.7859493,60851.0,60850.0,0.001636]
[1728631665027,0.7121293,60851.0,60850.0,0.001636]
[1728631665246,0.5642273,60851.0,60850.0,0.001636]
[1728631665490,0.62401958,60851.0,60850.0,0.001636]
[1728631665702,0.63801958,60851.0,60850.0,0.001636]
[1728631665945,0.62401958,60851.0,60850.0,0.001636]
[1728631666464,0.63801958,60851.0,60850.0,0.001636]
[1728631666708,0.62401958,60851.0,60850.0,0.001636]
[1728631667201,0.63801958,60851.0,60850.0,0.001636]
[1728631667658,0.5502273,60851.0,60850.0,0.001636]
[1728631668669,0.5642273,60851.0,60850.0,0.001636]
[1728631668888,0.5502273,60851.0,60850.0,0.001636]
[1728631669115,1.5502273,60851.0,60850.0,0.001636]
[1728631669363,1.5642273,60851.0,60850.0,0.001636]
[1728631669585,1.61340497,60851.0,60850.0,0.001636]
[1728631670094,1.59940497,60851.0,60850.0,0.001636]
[1728631670327,1.61340497,60851.0,60850.0,0.001636]
[1728631670794,2.1981293,60851.0,60850.0,0.001636]
[1728631671644,2.25790713,60851.0,60850.0,0.001636]
[1728631671850,2.27190713,60851.0,60850.0,0.001636]
[1728631672494,2.28588077,60851.0,60850.0,0.001636]
[1728631672705,2.27188077,60851.0,60850.0,0.001636]
[1728631672930,2.28588077,60851.0,60850.0,0.001636]
[1728631673141,2.27188077,60851.0,60850.0,0.001636]
[1728631673352,2.25788077,60851.0,60850.0,0.001636]
[1728631673559,2.27188077,60851.0,60850.0,0.001636]
[1728631673957,2.25788077,60851.0,60850.0,0.001636]
[1728631674205,2.27188077,60851.0,60850.0,0.001636]
[1728631674681,2.28588077,60851.0,60850.0,0.001636]
[1728631677103,2.2121293,60851.0,60850.0,0.001636]
[1728631677336,2.28586481,60851.0,60850.0,0.001636]
[1728631677542,2.2121293,60851.0,60850.0,0.001636]
[1728631680002,2.28586481,60851.0,60850.0,0.001636]
[1728631680434,2.46030751,60851.0,60850.0,0.001636]
[1728631680671,4.018246,60851.0,60850.0,0.001636]
[1728631680893,4.54286746,60851.0,60850.0,0.001636]
[1728631681117,4.42519284,60851.0,60850.0,0.001636]
[1728631681355,4.42319284,60851.0,60850.0,0.001636]
[1728631681605,4.39519284,60851.0,60850.0,0.001636]
[1728631681811,4.42319284,60851.0,60850.0,0.001636]
[1728631682231,4.40919284,60851.0,60850.0,0.001636]
[1728631682489,4.42319284,60851.0,60850.0,0.001636]
[1728631682715,0.012,60850.0,60849.0,0.001636]
[1728631682934,6.2908417,60850.0,60849.0,0.001636]
[1728631683642,6.9908417,60850.0,60849.0,0.001636]
[1728631684086,7.01295015,60850.0,60849.0,0.001636]
[1728631684299,7.02695015,60850.0,60849.0,0.001636]
[1728631684510,7.13017369,60850.0,60849.0,0.001636]
[1728631684927,7.11786369,60850.0,60849.0,0.001636]
[1728631685173,6.89982869,60850.0,60849.0,0.001636]
[1728631685397,6.11672969,60850.0,60849.0,0.001636]
[1728631685607,5.95124815,60850.0,60849.0,0.001636]
[1728631688188,6.65124815,60850.0,60849.0,0.001636]
[1728631689598,6.00792515,60850.0,60849.0,0.001636]
[1728631689840,4.44814185,60850.0,60849.0,0.001636]
[1728631690065,4.21257012,60850.0,60849.0,0.001636]
[1728631690276,4.44750753,60850.0,60849.0,0.001636]
[1728631690485,4.58499698,60850.0,60849.0,0.001636]
[1728631690699,4.54828698,60850.0,60849.0,0.001636]
[1728631691370,4.16372058,60850.0,60849.0,0.24938356]
[1728631691583,2.24867345,60850.0,60849.0,0.001636]
[1728631691828,1.46124975,60850.0,60849.0,0.001636]
[1728631692039,1.28468675,60850.0,60849.0,0.001636]
[1728631692271,1.18586675,60850.0,60849.0,0.001636]
[1728631692484,1.28030838,60850.0,60849.0,0.001636]
[1728631692694,1.03800338,60850.0,60849.0,0.001636]
[1728631692908,0.91356175,60850.0,60849.0,0.001636]
[1728631695284,1.01238175,60850.0,60849.0,0.001636]
[1728631696149,1.10401388,60850.0,60849.0,0.001636]
[1728631696782,1.09901388,60850.0,60849.0,0.001636]
[1728631697036,1.10401388,60850.0,60849.0,0.001636]
[1728631697897,1.09901388,60850.0,60849.0,0.001636]
[1728631698127,1.10401388,60850.0,60849.0,0.001636]
[1728631700231,1.09901388,60850.0,60849.0,0.001636]
[1728631700446,1.10401388,60850.0,60849.0,0.001636]
[1728631702962,1.12973778,60850.0,60849.0,0.001636]
[1728631705239,1.12473778,60850.0,60849.0,0.001636]
[1728631705650,0.84518935,60850.0,60849.0,0.001636]
[1728631705861,1.18673935,60850.0,60849.0,0.001636]
[1728631708147,1.75420435,60850.0,60849.0,0.001636]
[1728631708464,1.30805435,60850.0,60849.0,0.001636]
[1728631708619,0.92976465,60850.0,60849.0,0.001636]
[1728631712334,1.09920735,60850.0,60849.0,0.001636]
[1728631713373,0.93058265,60850.0,60849.0,0.001636]
[1728631713603,1.07778211,60850.0,60849.0,0.001636]
[1728631715549,1.16668989,60850.0,60849.0,0.001636]
[1728631717941,0.93058265,60850.0,60849.0,0.001636]
[1728631718155,1.16677376,60850.0,60849.0,0.001636]
[1728631718564,0.62316865,60850.0,60849.0,0.001636]
[1728631718788,0.64622683,60850.0,60849.0,0.001636]
[1728631718999,0.49886365,60850.0,60849.0,0.001636]
[1728631719442,0.48486365,60850.0,60849.0,0.001636]
[1728631719866,0.58628735,60850.0,60849.0,0.001636]
[1728631720274,0.55828735,60850.0,60849.0,0.001636]
[1728631720483,0.71965053,60850.0,60849.0,0.001636]
[1728631720888,0.73365053,60850.0,60849.0,0.001636]
[1728631721938,0.71965053,60850.0,60849.0,0.001636]
[1728631722167,0.73365053,60850.0,60849.0,0.001636]
[1728631722372,0.71965053,60850.0,60849.0,0.001636]
[1728631722581,0.95669936,60850.0,60849.0,0.001636]
[1728631722819,0.95681892,60850.0,60849.0,0.001636]
[1728631723015,0.8233359,60850.0,60849.0,0.001636]
[1728631723427,1.67235415,60850.0,60849.0,0.001636]
[1728631724250,1.50291145,60850.0,60849.0,0.001636]
[1728631724658,1.66882985,60850.0,60849.0,0.001636]
[1728631724867,1.33711815,60850.0,60849.0,0.001636]
[1728631725083,1.13508075,60850.0,60849.0,0.001636]
[1728631729289,1.30108772,60850.0,60849.0,0.001636]
[1728631729519,1.13508075,60850.0,60849.0,0.001636]
[1728631730059,1.30452345,60850.0,60849.0,0.001636]
[1728631730480,0.71290375,60850.0,60849.0,0.001636]
[1728631731027,0.71280375,60850.0,60849.0,0.001636]
[1728631731236,0.71210375,60850.0,60849.0,0.001636]
[1728631731478,0.71200375,60850.0,60849.0,0.001636]
[1728631731867,0.71190375,60850.0,60849.0,0.001636]
[1728631732073,0.71120375,60850.0,60849.0,0.001636]
[1728631732391,0.71110375,60850.0,60849.0,0.001636]
[1728631732547,0.71100375,60850.0,60849.0,0.001636]
[1728631732778,0.71090375,60850.0,60849.0,0.001636]
[1728631732984,0.71020375,60850.0,60849.0,0.001636]
[1728631733720,0.71030371,60850.0,60849.0,0.001636]
[1728631733957,0.70960371,60850.0,60849.0,0.001636]
[1728631734658,0.70940371,60850.0,60849.0,0.001636]
[1728631735850,0.70930371,60850.0,60849.0,0.001636]
[1728631736881,0.70920371,60850.0,60849.0,0.001636]
[1728631737575,0.70910371,60850.0,60849.0,0.001636]
[1728631739919,0.85750371,60850.0,60849.0,0.001636]
[1728631740147,1.21440571,60850.0,60849.0,0.001636]
[1728631741364,1.02531671,60850.0,60849.0,0.001636]
[1728631741486,0.7879682,60850.0,60849.0,0.001636]
[1728631741969,0.6201552,60850.0,60849.0,0.001636]
[1728631742191,0.8030472,60850.0,60849.0,0.001636]
[1728631742433,0.7498812,60850.0,60849.0,0.001636]
[1728631743723,0.6201552,60850.0,60849.0,0.001636]
[1728631743962,0.4717552,60850.0,60849.0,0.24938356]
[1728631744202,0.4717552,60850.0,60849.0,0.001636]
[1728631753437,0.5591789,60850.0,60849.0,0.001636]
[1728631753648,0.4717552,60850.0,60849.0,0.001636]
[1728631755759,0.5591789,60850.0,60849.0,0.001636]
[1728631757705,0.4591789,60850.0,60849.0,0.001636]
[1728631758116,0.5591789,60850.0,60849.0,0.001636]
[1728631761259,0.4591789,60850.0,60849.0,0.001636]
[1728631761468,0.4717552,60850.0,60849.0,0.001636]
[1728631772673,0.61959864,60850.0,60849.0,0.001636]
[1728631773544,0.71039063,60850.0,60849.0,0.001636]
[1728631774220,0.61959775,60850.0,60849.0,0.001636]
[1728631774433,0.4717552,60850.0,60849.0,0.001636]
[1728631786901,0.61959531,60850.0,60849.0,0.001636]
[1728631792745,0.4717552,60850.0,60849.0,0.001636]
[1728631800304,0.2238512,60850.0,60849.0,0.24938356]
[1728631800506,0.32237948,60850.0,60849.0,0.218836]
[1728631800645,0.32237972,60850.0,60849.0,0.218836]
[1728631801097,0.31901185,60850.0,60849.0,0.218836]
[1728631801303,0.2098512,60850.0,60849.0,0.218836]
[1728631801628,0.4577552,60850.0,60849.0,0.001636]
[1728631801777,0.58091585,60850.0,60849.0,0.001636]
[1728631802665,0.59491585,60850.0,60849.0,0.001636]
[1728631803377,0.4577552,60850.0,60849.0,0.001636]
[1728631803793,0.4717552,60850.0,60849.0,0.001636]
[1728631804003,0.59491585,60850.0,60849.0,0.001636]
[1728631804458,0.4717552,60850.0,60849.0,0.001636]
[1728631804659,0.4437552,60850.0,60849.0,0.001636]
[1728631804870,0.5766552,60850.0,60849.0,0.001636]
[1728631805115,0.6780789,60850.0,60849.0,0.001636]
[1728631805362,1.54438189,60850.0,60849.0,0.001636]
[1728631805578,1.55838189,60850.0,60849.0,0.001636]
[1728631806250,1.54438189,60850.0,60849.0,0.001636]
[1728631806667,1.53038189,60850.0,60849.0,0.001636]
[1728631806873,1.54438189,60850.0,60849.0,0.001636]
[1728631807293,1.55838189,60850.0,60849.0,0.001636]
[1728631807926,1.54438189,60850.0,60849.0,0.001636]
[1728631808129,1.53038189,60850.0,60849.0,0.001636]
[1728631808541,1.54438189,60850.0,60849.0,0.001636]
[1728631808791,1.65720189,60850.0,60849.0,0.001636]
[1728631808999,1.66031689,60850.0,60849.0,0.001636]
[1728631809411,2.69558889,60850.0,60849.0,0.001636]
[1728631809614,2.67717289,60850.0,60849.0,0.001636]
[1728631810240,2.84327916,60850.0,60849.0,0.001636]
[1728631810449,2.75585546,60850.0,60849.0,0.001636]
[1728631810656,2.81329616,60850.0,60849.0,0.001636]
[1728631811313,2.48553116,60850.0,60849.0,0.001636]
[1728631812365,2.03142889,60850.0,60849.0,0.001636]
[1728631815124,1.64117389,60850.0,60849.0,0.001636]
[1728631815536,1.55375019,60850.0,60849.0,0.001636]
[1728631815742,1.64117389,60850.0,60849.0,0.001636]
[1728631818079,1.55375019,60850.0,60849.0,0.001636]
[1728631821739,2.84254019,60850.0,60849.0,0.001636]
[1728631822183,2.82412419,60850.0,60849.0,0.001636]
[1728631822391,2.91154789,60850.0,60849.0,0.001636]
[1728631822599,2.89209289,60850.0,60849.0,0.001636]
[1728631823413,2.78841789,60850.0,60849.0,0.001636]
[1728631823971,2.77000189,60850.0,60849.0,0.001636]
[1728631825845,2.93944459,60850.0,60849.0,0.001636]
[1728631826046,2.77000189,60850.0,60849.0,0.001636]
[1728631828192,2.92860736,60850.0,60849.0,0.001636]
[1728631828405,3.31331902,60850.0,60849.0,0.001636]
[1728631828620,3.31329952,60850.0,60849.0,0.001636]
[1728631828830,4.05643036,60850.0,60849.0,0.001636]
[1728631829036,4.2987282,60850.0,60849.0,0.001636]